Cogmind - Beta 17.1 @@@ ROGUE MODE // 2026.08.31 @ 08:56:08 Player: Somberlain Result: Self-destructed Performance ------------- Evolutions (1) 500 Regions Visited (3) 600 Robots Destroyed (6) 30 Value Destroyed (237) 237 Prototype IDs (2) 40 Alien Tech Used (0) 0 Bonus (200) 200 TOTAL SCORE: 1607 Bonus ------- Pacifist 200 Cogmind --------- Core Integrity 77/400 Matter 300/300 Energy 67/100 System Corruption 0% Temperature Cool (8) Movement Core (50) Location -9/Storage Parts ------- > --- POWER (1) -------- (None) > --- PROPULSION (2) --- (None) > --- UTILITY (4) ------ (None) > --- WEAPON (2) ------- (None) > --- INVENTORY (5) ---- VTOL Module Drone Bay (2/2) Peak State ------------ > --- POWER ------------ Light Ion Engine > --- PROPULSION ------- Aluminum Leg Aluminum Leg > --- UTILITY ---------- Heat Sink Cooling System Small Storage Unit > --- WEAPON ----------- Medium Laser Small Laser > --- INVENTORY -------- VTOL Module Drone Bay [Rating: 9] Favorites ----------- Power Light Ion Engine Engine Light Ion Engine Propulsion Aluminum Leg Leg Aluminum Leg Utility Small Storage Unit Device Heat Sink Storage Small Storage Unit Weapon Small Laser Energy Gun Small Laser Build | -11 -10 -9 -9 ------- Run | Yrd Mat Mat Sto Slots Evolved 2 | . . 2 . Power . | . . . . Propulsion . | . . . . Utility 2 | . . 2 . Weapon . | . . . . Parts Attached 9 | 6 1 . 2 Power 1 | 1 . . . Engine 1 | 1 . . . Core . | . . . . Reactor . | . . . . Propulsion 2 | 2 . . . Treads . | . . . . Leg 2 | 2 . . . Wheel . | . . . . Hover . | . . . . Flight . | . . . . Utility 3 | 1 . . 2 Device 2 | . . . 2 Storage 1 | 1 . . . Processor . | . . . . Hackware . | . . . . Protection . | . . . . Artifact . | . . . . Weapon 3 | 2 1 . . Energy Gun 3 | 2 1 . . Energy Cannon . | . . . . Ballistic Gun . | . . . . Ballistic Cannon . | . . . . Launcher . | . . . . Special Weapon . | . . . . Impact Weapon . | . . . . Slashing Weapon . | . . . . Piercing Weapon . | . . . . Special Melee Weapon . | . . . . Unidentified Prototypes . | . . . . Parts Lost 3 | . . . 3 Power 1 | . . . 1 Propulsion . | . . . . Utility 1 | . . . 1 Weapon 1 | . . . 1 Highest Loss Streak 2 | . . . 2 To Critical Strikes . | . . . . Average Backups . | . . . 1 Power . | . . . . Propulsion . | . . . . Utility . | . . . . Weapon . | . . . . Tool/Special . | . . . . Unused Backups 2 | . . . 2 Power . | . . . . Propulsion 1 | . . . 1 Utility 1 | . . . 1 Weapon . | . . . . Tool/Special . | . . . . Average Slot Usage (%) 74 | . 85 66 68 Engine 8 | . 14 11 5 Leg 22 | . 28 22 20 Device 7 | . . . 12 Storage 11 | . 14 11 10 Energy Gun 22 | . 28 22 20 Peak Build Rating 9 | 6 6 6 9 Average Rating 6 | 4 6 6 6 On Entrance 4 | . 6 6 6 Avg Prop Armor Cover (%) 19 | . . . 19 Naked Turns 17 | . . . 17 Heaviest Build 14 | 10 11 11 14 Greatest Support 20 | 20 20 20 20 Greatest Overweight (x) 3 | 1 . . 3 Average Overweight (x) . | . . . . Largest Inventory Capacity 8 | 8 8 8 8 Average Capacity 7 | 6 8 8 7 Most Carried 2 | . . . 2 Average Carried 1 | . . . 1 Final Capacity 8 | 8 8 8 5 Final Carried 2 | . . . 2 Class Distribution -------------------- 100% | Mutant Dominant Class ---------------- Mutant | -10/Materials Mutant | -9/Materials Mutant | -9/Storage Resources | -11 -10 -9 -9 ----------- Run | Yrd Mat Mat Sto Matter Collected 290 | 225 45 . 20 Remotely . | . . . . Salvage Created 278 | . . . 278 Parts 15 | . . . 15 Haulers Intercepted . | . . . . Recyclers Shooed . | . . . . Parts Field Recycled . | . . . . Retrieved Matter . | . . . . Parts Self-Destructed . | . . . . Prevented . | . . . . Parts Restored . | . . . . Kills | -11 -10 -9 -9 ------- Run | Yrd Mat Mat Sto Combat Hostiles Destroyed 6 | . . . 6 Guns 6 | . . . 6 Classes Destroyed 2 | . . . 2 Grunt 3 | . . . 3 Sentry 3 | . . . 3 Best Kill Streak 2 | . . . 2 Combat Bots Only 2 | . . . 2 Max Kills in Single Turn 1 | . . . 1 Gunslinging . | . . . . Exploded . | . . . . Melee . | . . . . Uniques/NPCs Destroyed . | . . . . Combat | -11 -10 -9 -9 -------- Run | Yrd Mat Mat Sto Hostile Shots Fired 78 | . . . 78 Missed 29 | . . . 29 Hits 49 | . . . 49 Projectile 49 | . . . 49 Critical Strikes 1 | . . . 1 Damage Taken 658 | . . . 658 Core 323 | . . . 323 Absorbed by Shields 32 | . . . 32 Core Remaining (%) 100 | 100 100 . . Volleys Fired 15 | . . . 15 Largest 2 | . . . 2 Hottest 90 | . . . 90 Shots Fired 30 | . . . 30 Gun 30 | . . . 30 Cannon . | . . . . Launcher . | . . . . Special . | . . . . Kinetic . | . . . . Thermal 30 | . . . 30 Explosive . | . . . . Electromagnetic . | . . . . Robot Hit Streak 13 | . . . 13 Robot Miss Streak 3 | . . . 3 Penetration Max . | . . . . Secondary Targets 1 | . . . 1 Max Gunslinging Chain 1 | . . . 1 Shots Hit Robots 22 | . . . 22 Core Hits 12 | . . . 12 Critical Kills . | . . . . Critical Parts Destroyed . | . . . . Critical Strikes 1 | . . . 1 Burn 1 | . . . 1 Melee Attacks . | . . . . Impact . | . . . . Slashing . | . . . . Piercing . | . . . . Sneak Attacks . | . . . . Combat Hostiles . | . . . . Follow-up Attacks . | . . . . Damage Inflicted 264 | . . . 264 Guns 264 | . . . 264 Cannons . | . . . . Explosions . | . . . . Melee . | . . . . Ramming . | . . . . Kinetic . | . . . . Thermal 264 | . . . 264 Explosive . | . . . . Electromagnetic . | . . . . Impact . | . . . . Slashing . | . . . . Piercing . | . . . . Highest Corruption . | . . . . Average Corruption . | . . . . Corruption Purged . | . . . . Corruption Blocked . | . . . . Overload Shots . | . . . . Overflow Damage . | . . . . Projectiles . | . . . . Explosions . | . . . . Melee . | . . . . Knockbacks . | . . . . Impact . | . . . . Kinetic . | . . . . Secondary . | . . . . Self-Inflicted Damage . | . . . . Shots . | . . . . Rammed . | . . . . Targets Rammed . | . . . . Kicked . | . . . . Crushed . | . . . . Highest Temperature 201 | . . . 201 Average Temperature 102 | . . . 102 Received Heat Transfer 264 | . . . 264 Siege Activations . | . . . . Martial Activations . | . . . . Shielding Activations . | . . . . Robots Disrupted . | . . . . Combat Hostiles . | . . . . Robots Corrupted . | . . . . Combat Hostiles . | . . . . Parts Fried . | . . . . Impact Corruptions . | . . . . Robots Melted . | . . . . Combat Hostiles . | . . . . Parts Melted 1 | . . . 1 Heat Transferred 768 | . . . 768 Parts Sabotaged . | . . . . Parts Stolen . | . . . . Parts Stripped . | . . . . Power Chain Reactions . | . . . . Alert | -11 -10 -9 -9 ------- Run | Yrd Mat Mat Sto Maximum Alert Level . | . . . . Low Security (%) 100 | 100 100 100 100 Level 1 . | . . . . Level 2 . | . . . . Level 3 . | . . . . Level 4 . | . . . . Level 5 . | . . . . High Security . | . . . . Max Security . | . . . . Peak Influence 77 | . 5 . 77 Initial . | . . . . Average 11 | . . . 21 Influence Increases 172 | . 5 . 167 Destroy 0b10 Robot/C 120 | . . . 120 Destroy Leader 30 | . . . 30 Successful Hack 5 | . 5 . . Destroy Structure 2 | . . . 2 Partial Spotted 15 | . . . 15 Influence Decreases 172 | . 5 . 167 Time Decay 95 | . 5 . 90 Lost Part 30 | . . . 30 Purge Threat 47 | . . . 47 Squads Dispatched 5 | . 3 . 2 Investigation 3 | . 2 . 1 Extermination . | . . . . Reinforcement 2 | . 1 . 1 Assault . | . . . . Garrison . | . . . . Intercept . | . . . . Searches Triggered . | . . . . Construction Impeded . | . . . . Haulers Reinforced . | . . . . Active Scanning Responses . | . . . . Cargo Convoy Interrupts . | . . . . Stealth | -11 -10 -9 -9 --------- Run | Yrd Mat Mat Sto Distress Signals 1 | . . . 1 Communications Jammed . | . . . . Distress Signals . | . . . . Times Spotted 14 | . . . 14 Peak Tracking Total 8 | . . . 8 Tactical Retreats . | . . . . Traps | -11 -10 -9 -9 ------- Run | Yrd Mat Mat Sto Traps Triggered 2 | . . . 2 Indirectly . | . . . . Trap Hack Attempts . | . . . . Triggered . | . . . . Disarmed . | . . . . Reprogrammed . | . . . . Reused . | . . . . Traps Extracted . | . . . . Installed . | . . . . Triggered . | . . . . Machines | -11 -10 -9 -9 ---------- Run | Yrd Mat Mat Sto Machines Disabled . | . . . . Max in Single Turn . | . . . . Machines Repaired . | . . . . Machines Dismantled . | . . . . Machines Sabotaged . | . . . . Overloaded Fab Kills . | . . . . Hacking | -11 -10 -9 -9 --------- Run | Yrd Mat Mat Sto Machines Accessed 4 | . 1 . 3 Terminals 4 | . 1 . 3 Fabricators . | . . . . Repair Stations . | . . . . Recycling Units . | . . . . Scanalyzers . | . . . . Garrison Access . | . . . . Total Hacks 15 | . 7 . 8 Successful 5 | . 3 . 2 Failed 10 | . 4 . 6 Catastrophic 1 | . . . 1 Database Lockouts . | . . . . Manual 11 | . 5 . 6 Terminals 15 | . 7 . 8 Fabricators . | . . . . Repair Stations . | . . . . Recycling Units . | . . . . Scanalyzers . | . . . . Garrison Access . | . . . . Terminal Hacks 5 | . 3 . 2 Prototype ID Bank 1 | . 1 . . Open Door 1 | . . . 1 Branch Access Points 1 | . 1 . . Unreport Threat 1 | . . . 1 Registered Components 1 | . 1 . . Fabricator Hacks . | . . . . Repair Station Hacks . | . . . . Recycling Unit Hacks . | . . . . Scanalyzer . | . . . . Garrison Access Hacks . | . . . . Unauthorized Hacks . | . . . . Terminals . | . . . . Fabricators . | . . . . Repair Stations . | . . . . Recycling Units . | . . . . Scanalyzers . | . . . . Garrison Access . | . . . . Data Cores Recovered . | . . . . Used . | . . . . Hacking Detections 4 | . 1 . 3 Full Trace Events 2 | . 1 . 1 Feedback Events . | . . . . Feedback Blocked . | . . . . Robot Schematics Acquired . | . . . . Robots Built . | . . . . Authchips . | . . . . Time . | . . . . Total Robot Build Rating . | . . . . Part Schematics Acquired . | . . . . Parts Built . | . . . . Authchips . | . . . . Time . | . . . . Total Part Build Rating . | . . . . Part Studies Acquired . | . . . . Parts Repaired . | . . . . Time . | . . . . Parts Recycled . | . . . . Recycled Matter . | . . . . Retrieved Matter . | . . . . Retrieved Components . | . . . . Parts Scanalyzed . | . . . . Part Schematics Acquired . | . . . . Parts Damaged . | . . . . Bothacking | -11 -10 -9 -9 ------------ Run | Yrd Mat Mat Sto Used RIF Installer . | . . . . Robots Hacked . | . . . . Non-combat . | . . . . Combat . | . . . . Robot Hacks Applied . | . . . . Relay Couplers Released . | . . . . Fabnet Peak Effective % . | . . . . Robots Rewired . | . . . . Allies Hacked . | . . . . Hacks Repelled . | . . . . Allies | -11 -10 -9 -9 -------- Run | Yrd Mat Mat Sto Total Allies . | . . . . Largest Group . | . . . . Highest-Rated Group . | . . . . Highest-Rated Ally . | . . . . Total Orders . | . . . . Ally Attacks . | . . . . Total Damage . | . . . . Kills . | . . . . Allies Corrupted . | . . . . Allies Melted . | . . . . Intel | -11 -10 -9 -9 ------- Run | Yrd Mat Mat Sto Active Infowar (turns) . | . . . . Robot Analysis Total . | . . . . Derelict Logs Recovered . | . . . . Drone Launches . | . . . . Drone Recoveries . | . . . . Exploration | -11 -10 -9 -9 ------------- Run | Yrd Mat Mat Sto Turns Passed 531 | 59 162 17 293 Spaces Moved 362 | 49 134 15 164 Core 60 | 14 . . 46 Treads . | . . . . Legs 302 | 35 134 15 118 Wheels . | . . . . Hover . | . . . . Flight . | . . . . Fastest Speed 50 | 50 120 120 50 Average Speed 118 | 104 120 120 122 Slowest Speed 200 | 120 120 120 200 Overloaded Moves . | . . . . Propulsion Burnouts . | . . . . Robots Hopped . | . . . . Potential Cave-ins . | . . . . Cave-ins Triggered . | . . . . Exploration Rate (%) 20 | 4 26 3 50 Regions Visited 3 Branch Regions 1 Pre-discovered Areas . | . . . . Known Exits Taken . | . . . . Unknown Exits Taken 3 | 1 1 1 . Scrap Searched . | . . . . Spaces Dug . | . . . . Terrain Destroyed . | . . . . Melee . | . . . . Projectile . | . . . . AOE . | . . . . Terrain Rammed . | . . . . Walls Destroyed . | . . . . Machines Disabled . | . . . . Actions | -11 -10 -9 -9 --------- Run | Yrd Mat Mat Sto Total 429 | 54 134 14 227 Wait 34 | . . . 34 Move 359 | 48 133 14 164 Hop . | . . . . Pick Up 2 | . . . 2 Fast Attach 8 | 6 . . 2 Attach . | . . . . Detach . | . . . . Swap 1 | . 1 . . Drop 5 | . . . 5 Fire 15 | . . . 15 Melee . | . . . . Ram . | . . . . Kick . | . . . . Crush . | . . . . Escape Stasis 5 | . . . 5 Rewire . | . . . . Trap . | . . . . Miscellaneous . | . . . . Route ------- -11/Scrapyard -10/Materials (discovered 2 exits: [*Mat] / Min) -9/Materials -9/Storage History --------- Turn | Location | Event 16 | -11/Scrapyard | Discovered new exit (range 16) 60 | -11/Scrapyard | Entered Materials 61 | -10/Materials | Met a group of wandering Federalists 114 | -10/Materials | Identified exit to Mines 180 | -10/Materials | Discovered new exit (range 14) 222 | -10/Materials | Entered another Materials area 222 | -9/Materials | Evolved 2 slots: Utility x2 222 | -9/Materials | Discovered new exit (range 14) 239 | -9/Materials | Entered Storage 305 | -9/Storage | Build established: Mutant 521 | -9/Storage | Core integrity fell below 50% 532 | -9/Storage | Self-destructed Last Messages --------------- 00514_ R-06 Scavenger collects Aluminum Leg. 00514_ Dropped Heat Sink. 00515_ Dropped Med. Laser. 00515_ Dropped Sml. Storage Unit. 00517_ K-01 Serf collects debris. 00518_ C-30 ARC bursts open, deploying its payload. 00518_ G-47 Trooper unfolds itself. 00518_ G-34 Mercenary unfolds itself. 00520_ K-01 Serf collects debris. 00524_ K-01 Serf cleans the Terminal. 00526_ Triggered Stasis Trap. 00526_ A bubble of rippling energy engulfs the area. 00526_ Field strength at 94. 00527_ Field strength at 88. 00528_ Field strength at 76. 00529_ Field strength at 67. 00530_ Field strength at 50. 00531_ Field strength at 41. Map ----- +----------------------------------------------------+ | | | | | | | | | | | | | | | ?????????????????????????????????????????????????? | | ?????????????????????????????????????????????????? | | ?????????????????????????????????????????????????? | | ?????????????????????????????????????????????????? | | ???????### #####?????????????????????????????????? | | ???????# #?????????????????????????????????? | | ???????# """"" ###???????????????????????????????? | | ???????#^""""" ## ????? #???????????????????????? | | ???????#^""""" ## ??? ###?????????????????????? | | ???????# ## """ """?????????????????????? | | ?????### """"" T# """ R??????????????????????? | | ?????#""!""""" ## "???????????????????????? | | ?????#"T%""""" ## """ #???????????????????????? | | ?????#""[ ## """ #???????????????????????? | | ?????###!^ #? """ #???????????????????????? | | ?#######! #??? ?????????????????????????? | | ?# ####+#########r############### T????????? | | ?# g g g o #????????? | | ?# Y %g @ #????????? | | ?# g #????????? | | ?# % ###### k ########+##+######???????????? | | ####+#####??# #????????????????????????????? | | #??# #????????????????????????????? | | #??# #????????????????????????????? | | #??# #????????????????????????????? | | #?"" + ???????????????????????????? | | ##"" # ??????????????????????????? | | ##"T #? ?????????????????????????? | | ##"" #?? ?????????????????????????? | | ##"" #????????????????????????????? | | ####+######## #????????????????????????????? | | ???#% #????????????????????????????? | | ???# #????????????????????????????? | | ???# ##+### #????????????????????????????? | | #### " # #????????????????????????????? | | # ^ " # #????????????????????????????? | | # # # #????????????????????????????? | | # # ?????????????????????????????? | | # # #???????????????????????????????????? | | # #? +???????????????????????????????????? | | + #? #???????????????????????????????????? | | ####+## #?? #???????????????????????????????????? | | # #?? #???????????????????????????????????? | +----------------------------------------------------+ Best States ------------- Heat Dissipation 60 Energy Generation 10 Energy Capacity 125 Matter Stores 300 Matter Capacity 300 Sight Range 16 Terrain Scan Density 10 Evasion (%) 55 Item Schematics ----------------- None Robot Schematics ------------------ None Fabricated ------------ Nothing Repaired ---------- Nothing Studied --------- None Alien Tech Used ----------------- None Achievements -------------- None Challenges ------------ None Game ------ Seed TechNeutronInverter Manual? 0 Play Time 00:06:28 Cumulative 45.0 hours Start 2026.08.31 @ 08:51:27 End 2026.08.31 @ 08:56:08 Sessions 1 Manual Loads 0 Difficulty Rogue Special Mode None Game No. 68 Rogue 68 Adventurer 0 Explorer 0 Win Type - Total 0 Types 0/0/0/0/0/0/0/0/0/0 Lore% 31 Gallery% 32 Achievement% 29 Wizard Run 0 Options --------- Layout 1 ASCII 0 Keyboard 0 Movement Mouse Keybinds 0 Fullscreen 2 Font 24/Smallcaps Map View 50x35 Zoom Use 0% Tactical HUD 1 Map Filters NONE Filters NONE Steam 1 RUN: 755d0caa-1176-4fb1-a97b-df9e73d2e5b2